[Event "Live Chess"]
[Site "Chess.com"]
[Date "2023.05.21"]
[Round "-"]
[White "Tushinskiy"]
[Black "Biranidun"]
[Result "0-1"]
[WhiteElo "2212"]
[BlackElo "2540"]
[TimeControl "300"]
[EndTime "21:43:05 PDT"]
[Termination "Biranidun won by resignation"]

1. d4 {[%clk 0:04:56.4]} 1... Nf6 {[%clk 0:04:52.5]} 2. c3 {[%clk 0:04:56.3]}
2... g6 {[%clk 0:04:51.7]} 3. Nf3 {[%clk 0:04:55.8]} 3... h6 {[%clk 0:04:50.6]}
4. Bf4 {[%clk 0:04:54.3]} 4... Bg7 {[%clk 0:04:49.8]} 5. Bg3 {[%clk 0:04:54.2]}
5... d6 {[%clk 0:04:49.2]} 6. Nbd2 {[%clk 0:04:53.8]} 6... Nbd7 {[%clk
0:04:47.7]} 7. e4 {[%clk 0:04:53.2]} 7... b6 {[%clk 0:04:46.6]} 8. Bd3 {[%clk
0:04:52.4]} 8... O-O {[%clk 0:04:44.9]} 9. Qe2 {[%clk 0:04:51.6]} 9... Bb7
{[%clk 0:04:44]} 10. e5 {[%clk 0:04:50.7]} 10... dxe5 {[%clk 0:04:40.3]} 11.
dxe5 {[%clk 0:04:50.6]} 11... Nc5 {[%clk 0:04:39.4]} 12. Bc2 {[%clk 0:04:49.2]}
12... Nh5 {[%clk 0:04:35.5]} 13. O-O {[%clk 0:04:45.6]} 13... Ba6 {[%clk
0:04:33.5]} 14. c4 {[%clk 0:04:44.3]} 14... Qc8 {[%clk 0:04:10.2]} 15. Rad1
{[%clk 0:04:37.1]} 15... Bb7 {[%clk 0:04:07.9]} 16. Nh4 {[%clk 0:04:28.6]} 16...
Ne6 {[%clk 0:03:56.9]} 17. f4 {[%clk 0:04:21.6]} 17... Nd4 {[%clk 0:03:55.1]}
18. Qd3 {[%clk 0:04:19.4]} 18... Nxc2 {[%clk 0:03:53.7]} 19. Qxc2 {[%clk
0:04:19.3]} 19... Nxg3 {[%clk 0:03:52.5]} 20. hxg3 {[%clk 0:04:18.2]} 20... Qg4
{[%clk 0:03:51.9]} 21. Qc3 {[%clk 0:04:05.1]} 21... Rad8 {[%clk 0:03:48.1]} 22.
Kh2 {[%clk 0:04:02.1]} 22... Rd7 {[%clk 0:03:38.5]} 23. Ndf3 {[%clk 0:03:59.8]}
23... Rfd8 {[%clk 0:03:35.1]} 24. Rxd7 {[%clk 0:03:58.5]} 24... Qxd7 {[%clk
0:03:34.4]} 25. Qe1 {[%clk 0:03:52.1]} 25... e6 {[%clk 0:03:29.8]} 26. b3 {[%clk
0:03:48]} 26... Bf8 {[%clk 0:03:26.4]} 27. Qe2 {[%clk 0:03:41.4]} 27... Qd3
{[%clk 0:03:21.9]} 28. Re1 {[%clk 0:03:39.9]} 28... Bb4 {[%clk 0:03:17.5]} 29.
Qxd3 {[%clk 0:03:37.7]} 29... Rxd3 {[%clk 0:03:17.4]} 30. Re2 {[%clk 0:03:37.2]}
30... Rd1 {[%clk 0:03:12.4]} 31. g4 {[%clk 0:03:33.6]} 31... a5 {[%clk
0:03:08.7]} 32. Kg3 {[%clk 0:03:32.6]} 32... a4 {[%clk 0:03:01.2]} 33. Kf2
{[%clk 0:03:14.7]} 33... Bc5+ {[%clk 0:02:43.1]} 34. Kg3 {[%clk 0:03:13.3]}
34... axb3 {[%clk 0:02:36.3]} 35. axb3 {[%clk 0:03:13.2]} 35... Rd3 {[%clk
0:02:35.6]} 36. Ra2 {[%clk 0:03:11.9]} 36... g5 {[%clk 0:02:23.7]} 37. Nf5
{[%clk 0:03:08.8]} 37... exf5 {[%clk 0:02:22.8]} 38. gxf5 {[%clk 0:03:08.7]}
38... Be4 {[%clk 0:02:09]} 39. f6 {[%clk 0:03:05.7]} 39... Kh7 {[%clk
0:01:44.2]} 40. Ra7 {[%clk 0:02:58.6]} 40... Kg6 {[%clk 0:01:24.9]} 41. Rxc7
{[%clk 0:02:51]} 41... Be3 {[%clk 0:01:23.7]} 42. fxg5 {[%clk 0:02:36.2]} 42...
hxg5 {[%clk 0:01:23.6]} 43. e6 {[%clk 0:02:32]} 43... Bf4+ {[%clk 0:01:22.3]}
44. Kf2 {[%clk 0:02:27.5]} 44... Bxc7 {[%clk 0:01:16]} 45. exf7 {[%clk
0:02:20.9]} 45... Rxf3+ {[%clk 0:00:55.7]} 46. gxf3 {[%clk 0:02:19.3]} 46...
Kxf7 {[%clk 0:00:55.6]} 47. fxe4 {[%clk 0:02:17.7]} 47... Kxf6 {[%clk
0:00:55.5]} 48. Kf3 {[%clk 0:02:16.5]} 48... Bd6 {[%clk 0:00:51.5]} 49. Kg4
{[%clk 0:02:13.5]} 49... Bb4 {[%clk 0:00:50.5]} 50. e5+ {[%clk 0:02:09.8]} 50...
Kxe5 {[%clk 0:00:49.2]} 51. Kxg5 {[%clk 0:02:09.7]} 51... Kd4 {[%clk 0:00:48.7]}
52. Kf4 {[%clk 0:02:09.4]} 52... Kc3 {[%clk 0:00:48]} 53. Ke4 {[%clk 0:02:09]}
53... Kxb3 {[%clk 0:00:46.9]} 54. Kd4 {[%clk 0:02:08.5]} 54... Bc5+ {[%clk
0:00:46]} 55. Kd5 {[%clk 0:02:08.1]} 55... Kb4 {[%clk 0:00:45.5]} 0-1

[Event "Live Chess"]
[Site "Chess.com"]
[Date "2023.05.21"]
[Round "-"]
[White "Singapourfeuj"]
[Black "seabuck"]
[Result "1-0"]
[WhiteElo "2184"]
[BlackElo "1885"]
[TimeControl "300"]
[EndTime "21:43:30 PDT"]
[Termination "Singapourfeuj won by resignation"]

1. d4 {[%clk 0:04:57.2]} 1... d5 {[%clk 0:04:56.2]} 2. c4 {[%clk 0:04:55.5]}
2... c6 {[%clk 0:04:54.9]} 3. Nf3 {[%clk 0:04:54.3]} 3... e6 {[%clk 0:04:53.5]}
4. cxd5 {[%clk 0:04:51.7]} 4... exd5 {[%clk 0:04:48.7]} 5. Nc3 {[%clk
0:04:50.4]} 5... Nf6 {[%clk 0:04:47.4]} 6. Bg5 {[%clk 0:04:49.1]} 6... h6 {[%clk
0:04:41.5]} 7. Bh4 {[%clk 0:04:47.7]} 7... Bf5 {[%clk 0:04:37]} 8. e3 {[%clk
0:04:46.2]} 8... Be7 {[%clk 0:04:35]} 9. Bd3 {[%clk 0:04:38.7]} 9... Bxd3 {[%clk
0:04:32.2]} 10. Qxd3 {[%clk 0:04:34.7]} 10... O-O {[%clk 0:04:15.5]} 11. Bxf6
{[%clk 0:04:32.5]} 11... Bxf6 {[%clk 0:04:13.6]} 12. O-O {[%clk 0:04:31.6]}
12... Nd7 {[%clk 0:04:08.6]} 13. Rab1 {[%clk 0:04:27.6]} 13... a5 {[%clk
0:04:07.1]} 14. a3 {[%clk 0:04:25]} 14... Qb6 {[%clk 0:03:45.9]} 15. Rfc1 {[%clk
0:04:12.5]} 15... Qb3 {[%clk 0:03:36.5]} 16. Qc2 {[%clk 0:04:08]} 16... Qxc2
{[%clk 0:03:34.4]} 17. Rxc2 {[%clk 0:04:07.1]} 17... Nb6 {[%clk 0:03:24.6]} 18.
Ne2 {[%clk 0:04:00]} 18... Nc4 {[%clk 0:03:17.7]} 19. Nd2 {[%clk 0:03:57.5]}
19... b5 {[%clk 0:03:08.6]} 20. Nxc4 {[%clk 0:03:56.1]} 20... bxc4 {[%clk
0:03:05.8]} 21. b3 {[%clk 0:03:54.3]} 21... Rfb8 {[%clk 0:03:02.6]} 22. Rcb2
{[%clk 0:03:51.7]} 22... cxb3 {[%clk 0:02:35.5]} 23. Rxb3 {[%clk 0:03:50.5]}
23... Rxb3 {[%clk 0:02:33.2]} 24. Rxb3 {[%clk 0:03:49.3]} 24... Be7 {[%clk
0:02:29.4]} 25. a4 {[%clk 0:03:46.6]} 25... Bb4 {[%clk 0:02:19.1]} 26. Nf4
{[%clk 0:03:45.3]} 26... Rb8 {[%clk 0:02:04]} 27. Nd3 {[%clk 0:03:41.5]} 27...
Bd6 {[%clk 0:02:03]} 28. Rxb8+ {[%clk 0:03:39.3]} 28... Bxb8 {[%clk 0:02:01.7]}
29. h3 {[%clk 0:03:36.9]} 29... Kf8 {[%clk 0:01:59.5]} 30. Nc5 {[%clk
0:03:34.8]} 30... Ke7 {[%clk 0:01:56.2]} 31. Kf1 {[%clk 0:03:29.9]} 31... Bd6
{[%clk 0:01:48]} 32. Nb3 {[%clk 0:03:28.3]} 32... Bb4 {[%clk 0:01:43]} 33. Ke2
{[%clk 0:03:27.3]} 33... Kd6 {[%clk 0:01:40.3]} 34. Kd3 {[%clk 0:03:25.3]} 34...
c5 {[%clk 0:01:34.5]} 35. dxc5+ {[%clk 0:03:24]} 35... Bxc5 {[%clk 0:01:22]} 36.
Nxa5 {[%clk 0:03:22.8]} 36... Bb4 {[%clk 0:01:20.2]} 37. Nb3 {[%clk 0:03:21]}
37... g5 {[%clk 0:01:15]} 38. f3 {[%clk 0:03:18.6]} 38... f5 {[%clk 0:01:13]}
39. g4 {[%clk 0:03:17.2]} 39... fxg4 {[%clk 0:01:07.2]} 40. hxg4 {[%clk
0:03:15.6]} 40... Be1 {[%clk 0:00:55]} 41. Nd4 {[%clk 0:03:12.8]} 1-0

[Event "Live Chess"]
[Site "Chess.com"]
[Date "2023.05.21"]
[Round "-"]
[White "Conradical12"]
[Black "Biranidun"]
[Result "0-1"]
[WhiteElo "1640"]
[BlackElo "2540"]
[TimeControl "300"]
[EndTime "21:44:03 PDT"]
[Termination "Biranidun won by checkmate"]

1. e4 {[%clk 0:04:57.6]} 1... c5 {[%clk 0:04:58.8]} 2. f4 {[%clk 0:04:54.5]}
2... Nc6 {[%clk 0:04:57.1]} 3. d4 {[%clk 0:04:54.4]} 3... cxd4 {[%clk
0:04:55.7]} 4. c4 {[%clk 0:04:54.3]} 4... dxc3 {[%clk 0:04:54.2]} 5. b4 {[%clk
0:04:54.2]} 5... Nxb4 {[%clk 0:04:52.2]} 6. a4 {[%clk 0:04:54.1]} 6... c2 {[%clk
0:04:50.9]} 7. g4 {[%clk 0:04:54]} 7... cxd1=Q+ {[%clk 0:04:50.1]} 8. Kxd1
{[%clk 0:04:52.4]} 8... Qc7 {[%clk 0:04:47.8]} 9. h4 {[%clk 0:04:52.3]} 9...
Qc2+ {[%clk 0:04:46.9]} 10. Ke1 {[%clk 0:04:50.3]} 10... Qxc1+ {[%clk
0:04:46.3]} 11. Kf2 {[%clk 0:04:48.4]} 11... Qb2+ {[%clk 0:04:44.4]} 12. Ke1
{[%clk 0:04:46.2]} 12... Qxa1 {[%clk 0:04:41.9]} 13. Kd1 {[%clk 0:04:44.3]}
13... Qxb1+ {[%clk 0:04:41.2]} 14. Kd2 {[%clk 0:04:43.5]} 14... Qc2+ {[%clk
0:04:40.2]} 15. Ke3 {[%clk 0:04:42.1]} 15... e5 {[%clk 0:04:39.2]} 16. h5 {[%clk
0:04:32.1]} 16... Bc5+ {[%clk 0:04:39.1]} 17. Kf3 {[%clk 0:04:29.7]} 17... Qf2#
{[%clk 0:04:39]} 0-1

[Event "Live Chess"]
[Site "Chess.com"]
[Date "2023.05.21"]
[Round "-"]
[White "BostonStrangler"]
[Black "Doge_Dandolo"]
[Result "1-0"]
[WhiteElo "2064"]
[BlackElo "1921"]
[TimeControl "300"]
[EndTime "21:44:39 PDT"]
[Termination "BostonStrangler won by checkmate"]

1. Nf3 {[%clk 0:04:57.6]} 1... Nf6 {[%clk 0:04:57.3]} 2. b3 {[%clk 0:04:53]}
2... g6 {[%clk 0:04:56]} 3. Bb2 {[%clk 0:04:52.4]} 3... Bg7 {[%clk 0:04:55.5]}
4. e4 {[%clk 0:04:49.9]} 4... d6 {[%clk 0:04:54.2]} 5. e5 {[%clk 0:04:47.3]}
5... dxe5 {[%clk 0:04:52.2]} 6. Bxe5 {[%clk 0:04:45.8]} 6... O-O {[%clk
0:04:50.7]} 7. Bc4 {[%clk 0:04:42.9]} 7... Nbd7 {[%clk 0:04:49.1]} 8. Bb2 {[%clk
0:04:41.3]} 8... c6 {[%clk 0:04:47.8]} 9. O-O {[%clk 0:04:39.2]} 9... a5 {[%clk
0:04:46.5]} 10. a4 {[%clk 0:04:37.5]} 10... Qc7 {[%clk 0:04:37.6]} 11. h3 {[%clk
0:04:34.6]} 11... Nb6 {[%clk 0:04:32.6]} 12. Bd3 {[%clk 0:04:31.7]} 12... Nbd5
{[%clk 0:04:30.2]} 13. Nc3 {[%clk 0:04:23.2]} 13... Nb4 {[%clk 0:04:28.3]} 14.
Be2 {[%clk 0:04:20.5]} 14... Bf5 {[%clk 0:04:26.1]} 15. Nd4 {[%clk 0:04:18]}
15... Bd7 {[%clk 0:04:20.2]} 16. Nf3 {[%clk 0:04:11.5]} 16... Bf5 {[%clk
0:04:18.5]} 17. Rc1 {[%clk 0:04:09.6]} 17... Rad8 {[%clk 0:04:07.3]} 18. d3
{[%clk 0:04:05.5]} 18... Rfe8 {[%clk 0:04:02.5]} 19. Re1 {[%clk 0:04:00.3]}
19... Qb8 {[%clk 0:03:54]} 20. Ba1 {[%clk 0:03:56.7]} 20... Nfd5 {[%clk
0:03:50.2]} 21. Nxd5 {[%clk 0:03:55]} 21... Nxd5 {[%clk 0:03:47.9]} 22. Bxg7
{[%clk 0:03:52.9]} 22... Kxg7 {[%clk 0:03:46.6]} 23. Qd2 {[%clk 0:03:49.2]}
23... Qc7 {[%clk 0:03:43.3]} 24. c4 {[%clk 0:03:26.5]} 24... Nb4 {[%clk
0:03:40.8]} 25. Qc3+ {[%clk 0:03:24.2]} 25... f6 {[%clk 0:03:38.3]} 26. Rcd1
{[%clk 0:03:16.3]} 26... e5 {[%clk 0:03:35.8]} 27. d4 {[%clk 0:03:11.9]} 27...
exd4 {[%clk 0:03:33.7]} 28. Nxd4 {[%clk 0:03:10.7]} 28... Bc8 {[%clk 0:03:26.3]}
29. Bf3 {[%clk 0:02:46.1]} 29... Kf7 {[%clk 0:03:17]} 30. Nc2 {[%clk 0:02:35.1]}
30... Nxc2 {[%clk 0:03:04.6]} 31. Qxc2 {[%clk 0:02:34]} 31... Bf5 {[%clk
0:03:03.2]} 32. Qc1 {[%clk 0:02:32.4]} 32... Qb6 {[%clk 0:02:52.9]} 33. Qc3
{[%clk 0:02:21.6]} 33... Qc5 {[%clk 0:02:37.5]} 34. g4 {[%clk 0:02:15]} 34...
Bc8 {[%clk 0:02:32.4]} 35. Kg2 {[%clk 0:01:59.2]} 35... h5 {[%clk 0:02:24.2]}
36. gxh5 {[%clk 0:01:48.3]} 36... gxh5 {[%clk 0:02:19.7]} 37. Qc2 {[%clk
0:01:38.6]} 37... Rg8+ {[%clk 0:02:13.8]} 38. Kh1 {[%clk 0:01:30.3]} 38... Rxd1
{[%clk 0:02:04.1]} 39. Qh7+ {[%clk 0:01:04.5]} 39... Rg7 {[%clk 0:02:02.6]} 40.
Bxh5+ {[%clk 0:00:38.4]} 40... Kf8 {[%clk 0:01:53.4]} 41. Qh8+ {[%clk
0:00:36.2]} 41... Rg8 {[%clk 0:01:51.8]} 42. Qxf6# {[%clk 0:00:34.2]} 1-0

[Event "Live Chess"]
[Site "Chess.com"]
[Date "2023.05.21"]
[Round "-"]
[White "matt1979"]
[Black "Hacker_2009"]
[Result "0-1"]
[WhiteElo "1503"]
[BlackElo "1919"]
[TimeControl "300"]
[EndTime "21:46:02 PDT"]
[Termination "Hacker_2009 won on time"]

1. f4 {[%clk 0:04:58.9]} 1... d5 {[%clk 0:04:56.4]} 2. e3 {[%clk 0:04:57.2]}
2... c5 {[%clk 0:04:55.6]} 3. Nf3 {[%clk 0:04:55.9]} 3... e6 {[%clk 0:04:54.7]}
4. b3 {[%clk 0:04:52]} 4... Nf6 {[%clk 0:04:53.7]} 5. Bb2 {[%clk 0:04:49.7]}
5... Be7 {[%clk 0:04:51.2]} 6. Ne5 {[%clk 0:04:47.9]} 6... O-O {[%clk
0:04:49.8]} 7. d3 {[%clk 0:04:45.5]} 7... Nc6 {[%clk 0:04:47.7]} 8. Be2 {[%clk
0:04:40.4]} 8... Qc7 {[%clk 0:04:46.1]} 9. O-O {[%clk 0:04:37.9]} 9... b6 {[%clk
0:04:45.3]} 10. a3 {[%clk 0:04:32.7]} 10... Bb7 {[%clk 0:04:44.7]} 11. Qe1
{[%clk 0:04:28]} 11... Rfd8 {[%clk 0:04:43.6]} 12. Qg3 {[%clk 0:04:18.6]} 12...
Rac8 {[%clk 0:04:41.6]} 13. Qh3 {[%clk 0:04:12]} 13... Bd6 {[%clk 0:04:39.3]}
14. Nxc6 {[%clk 0:04:03.3]} 14... Qxc6 {[%clk 0:04:34.1]} 15. Nd2 {[%clk
0:04:01.1]} 15... Be7 {[%clk 0:04:30.2]} 16. Bf3 {[%clk 0:03:58.2]} 16... Qd7
{[%clk 0:04:27]} 17. Be2 {[%clk 0:03:53.8]} 17... a6 {[%clk 0:04:15.9]} 18. Rf3
{[%clk 0:03:47.8]} 18... b5 {[%clk 0:04:07.9]} 19. Rg3 {[%clk 0:03:45]} 19...
Kh8 {[%clk 0:04:02.9]} 20. Bf3 {[%clk 0:03:33.8]} 20... c4 {[%clk 0:03:51.8]}
21. d4 {[%clk 0:03:29.7]} 21... c3 {[%clk 0:03:50.1]} 22. Bc1 {[%clk 0:03:22.3]}
22... cxd2 {[%clk 0:03:48.8]} 23. Bxd2 {[%clk 0:03:21.3]} 23... Rxc2 {[%clk
0:03:48.4]} 24. Ba5 {[%clk 0:03:17.7]} 24... Rdc8 {[%clk 0:03:42.6]} 25. Rf1
{[%clk 0:03:05.5]} 25... Rc1 {[%clk 0:03:30.1]} 26. f5 {[%clk 0:02:51.6]} 26...
Rxf1+ {[%clk 0:03:27.2]} 27. Kxf1 {[%clk 0:02:50.3]} 27... Rc1+ {[%clk
0:03:25.6]} 28. Kf2 {[%clk 0:02:43.1]} 28... Qc6 {[%clk 0:03:23.3]} 29. fxe6
{[%clk 0:02:36.4]} 29... Qc2+ {[%clk 0:03:22.6]} 30. Be2 {[%clk 0:02:33.8]}
30... Ne4+ {[%clk 0:03:20.4]} 31. Kf3 {[%clk 0:02:31]} 31... Ng5+ {[%clk
0:02:35.6]} 32. Rxg5 {[%clk 0:02:27.6]} 32... Bxg5 {[%clk 0:02:35.5]} 33. exf7
{[%clk 0:02:18.8]} 33... Qe4+ {[%clk 0:02:34.2]} 34. Kf2 {[%clk 0:02:14.9]}
34... Rc8 {[%clk 0:02:16.4]} 35. Bb4 {[%clk 0:02:10.2]} 35... Ra8 {[%clk
0:01:59.7]} 36. f8=Q+ {[%clk 0:01:32.4]} 36... Rxf8+ {[%clk 0:01:57]} 37. Bxf8
{[%clk 0:01:31.2]} 37... Kg8 {[%clk 0:01:53.6]} 38. Bc5 {[%clk 0:01:27.5]} 38...
Qe8 {[%clk 0:01:44.3]} 39. Bd3 {[%clk 0:01:24.6]} 39... h6 {[%clk 0:01:40.7]}
40. Qf5 {[%clk 0:01:20.3]} 40... Qxe3+ {[%clk 0:01:38.1]} 41. Kf1 {[%clk
0:01:14.4]} 41... Qf4+ {[%clk 0:01:34.2]} 42. Qxf4 {[%clk 0:01:12.1]} 42... Bxf4
{[%clk 0:01:34.1]} 43. g3 {[%clk 0:01:08.1]} 43... Bc1 {[%clk 0:01:31.5]} 44.
Ke2 {[%clk 0:01:03.1]} 44... Kf7 {[%clk 0:01:28.5]} 45. Kf3 {[%clk 0:00:59.1]}
45... Bg5 {[%clk 0:01:27.4]} 46. h4 {[%clk 0:00:55.1]} 46... Be7 {[%clk
0:01:26.6]} 47. Bxe7 {[%clk 0:00:52.7]} 47... Kxe7 {[%clk 0:01:21.9]} 48. Kg4
{[%clk 0:00:51.6]} 48... Bc8+ {[%clk 0:01:14.9]} 49. Kh5 {[%clk 0:00:49.6]}
49... Kf6 {[%clk 0:01:14.1]} 50. b4 {[%clk 0:00:33.7]} 50... Bh3 {[%clk
0:01:09.3]} 51. Be2 {[%clk 0:00:27.4]} 51... Bg2 {[%clk 0:01:07]} 52. Bg4 {[%clk
0:00:24.7]} 52... Be4 {[%clk 0:00:53]} 53. Bc8 {[%clk 0:00:23.2]} 53... Bd3
{[%clk 0:00:43.8]} 54. Bxa6 {[%clk 0:00:21.5]} 54... Kf5 {[%clk 0:00:38.8]} 55.
a4 {[%clk 0:00:20.3]} 55... Ke4 {[%clk 0:00:35.2]} 56. axb5 {[%clk 0:00:17.9]}
56... Kxd4 {[%clk 0:00:34.5]} 57. Kg4 {[%clk 0:00:13.7]} 57... Kc3 {[%clk
0:00:33.7]} 58. Kf4 {[%clk 0:00:11.2]} 58... Kxb4 {[%clk 0:00:33.2]} 59. Ke5
{[%clk 0:00:09.3]} 59... Kc5 {[%clk 0:00:30.8]} 60. Ke6 {[%clk 0:00:06.2]} 60...
d4 {[%clk 0:00:26.4]} 61. Bc8 {[%clk 0:00:03.9]} 61... Bxb5 {[%clk 0:00:22.5]}
0-1

[Event "Live Chess"]
[Site "Chess.com"]
[Date "2023.05.21"]
[Round "-"]
[White "BostonStrangler"]
[Black "Conradical12"]
[Result "1-0"]
[WhiteElo "2065"]
[BlackElo "1639"]
[TimeControl "300"]
[EndTime "21:46:12 PDT"]
[Termination "BostonStrangler won by resignation"]

1. Nf3 {[%clk 0:04:59.1]} 1... Nc6 {[%clk 0:04:58.2]} 2. d4 {[%clk 0:04:57.3]}
2... d5 {[%clk 0:04:56.1]} 3. c4 {[%clk 0:04:56.1]} 3... Nf6 {[%clk 0:04:43.8]}
4. Nc3 {[%clk 0:04:51.5]} 4... Bf5 {[%clk 0:04:41.6]} 5. cxd5 {[%clk 0:04:38.4]}
5... Nb4 {[%clk 0:04:36.9]} 6. Qa4+ {[%clk 0:04:30.8]} 6... c6 {[%clk 0:04:24]}
7. Qxb4 {[%clk 0:04:28.9]} 7... b6 {[%clk 0:04:21.7]} 8. dxc6 {[%clk 0:04:26.1]}
8... b5 {[%clk 0:04:21.6]} 9. Qxb5 {[%clk 0:04:23.9]} 9... a6 {[%clk 0:04:21.5]}
10. Qxf5 {[%clk 0:04:22]} 10... e6 {[%clk 0:04:18]} 11. Qd3 {[%clk 0:04:19]} 1-0

[Event "Live Chess"]
[Site "Chess.com"]
[Date "2023.05.21"]
[Round "-"]
[White "tpm07"]
[Black "Doge_Dandolo"]
[Result "0-1"]
[WhiteElo "1939"]
[BlackElo "1930"]
[TimeControl "300"]
[EndTime "21:47:14 PDT"]
[Termination "Doge_Dandolo won by resignation"]

1. e4 {[%clk 0:04:56]} 1... c6 {[%clk 0:04:58.5]} 2. d4 {[%clk 0:04:54.6]} 2...
d5 {[%clk 0:04:57.7]} 3. Nc3 {[%clk 0:04:53.8]} 3... dxe4 {[%clk 0:04:56.6]} 4.
Nxe4 {[%clk 0:04:53.7]} 4... Bf5 {[%clk 0:04:55.5]} 5. Ng3 {[%clk 0:04:51.9]}
5... Bg6 {[%clk 0:04:54.1]} 6. N1e2 {[%clk 0:04:51.5]} 6... Nf6 {[%clk 0:04:49]}
7. Nf4 {[%clk 0:04:50.5]} 7... e5 {[%clk 0:04:45.2]} 8. Nxg6 {[%clk 0:04:44.6]}
8... hxg6 {[%clk 0:04:42.4]} 9. dxe5 {[%clk 0:04:42.4]} 9... Qa5+ {[%clk
0:04:40.2]} 10. c3 {[%clk 0:04:35.7]} 10... Qxe5+ {[%clk 0:04:38.4]} 11. Be2
{[%clk 0:04:33.6]} 11... Bc5 {[%clk 0:04:31.8]} 12. Bd2 {[%clk 0:04:19.6]} 12...
Nbd7 {[%clk 0:04:23.7]} 13. Qc2 {[%clk 0:04:15.8]} 13... O-O-O {[%clk
0:04:18.6]} 14. O-O-O {[%clk 0:04:14.4]} 14... Bxf2 {[%clk 0:04:12.3]} 15. Bf3
{[%clk 0:04:05.8]} 15... Nc5 {[%clk 0:03:59]} 16. Bf4 {[%clk 0:03:50.1]} 0-1

[Event "Live Chess"]
[Site "Chess.com"]
[Date "2023.05.21"]
[Round "-"]
[White "Fazer180"]
[Black "raminguy"]
[Result "0-1"]
[WhiteElo "1742"]
[BlackElo "1964"]
[TimeControl "300"]
[EndTime "21:47:44 PDT"]
[Termination "raminguy won by resignation"]

1. e4 {[%clk 0:04:58.5]} 1... e5 {[%clk 0:04:58.5]} 2. Nf3 {[%clk 0:04:57.6]}
2... Nc6 {[%clk 0:04:56.3]} 3. d4 {[%clk 0:04:57.2]} 3... exd4 {[%clk
0:04:55.3]} 4. Nxd4 {[%clk 0:04:57.1]} 4... Qf6 {[%clk 0:04:54.1]} 5. Be3 {[%clk
0:04:51.7]} 5... Bc5 {[%clk 0:04:53.4]} 6. c3 {[%clk 0:04:51.1]} 6... Nge7
{[%clk 0:04:52.4]} 7. Bc4 {[%clk 0:04:49]} 7... d6 {[%clk 0:04:50]} 8. Nb5
{[%clk 0:04:46.3]} 8... Bxe3 {[%clk 0:04:46]} 9. fxe3 {[%clk 0:04:41]} 9... Qh4+
{[%clk 0:04:37.8]} 10. Kd2 {[%clk 0:04:29.6]} 10... Kd8 {[%clk 0:04:19.3]} 11.
Bd3 {[%clk 0:04:03]} 11... Qg5 {[%clk 0:04:11.1]} 12. Qe2 {[%clk 0:03:57.4]}
12... Ne5 {[%clk 0:04:09.1]} 13. g3 {[%clk 0:03:47]} 13... Bd7 {[%clk 0:03:55]}
14. N1a3 {[%clk 0:03:42.3]} 14... c5 {[%clk 0:03:49.2]} 15. Nxd6 {[%clk
0:03:38]} 15... Rf8 {[%clk 0:03:40.4]} 16. Nxb7+ {[%clk 0:03:33.9]} 16... Kc7
{[%clk 0:03:38.5]} 17. Nxc5 {[%clk 0:03:28.8]} 17... Bg4 {[%clk 0:03:33.8]} 18.
Qf2 {[%clk 0:03:06.8]} 18... Nf3+ {[%clk 0:03:31.8]} 19. Kc2 {[%clk 0:03:05.2]}
19... Qxc5 {[%clk 0:03:29.9]} 20. Nb5+ {[%clk 0:02:57]} 20... Kb8 {[%clk
0:03:21.2]} 21. h3 {[%clk 0:02:54.8]} 21... Ne5 {[%clk 0:02:55.7]} 22. Qf4
{[%clk 0:02:35.8]} 22... Bd7 {[%clk 0:02:38.2]} 23. Na3 {[%clk 0:02:20.3]} 23...
g5 {[%clk 0:02:32.9]} 24. Qxg5 {[%clk 0:02:04]} 24... Nxd3 {[%clk 0:02:31.5]}
25. Kxd3 {[%clk 0:02:02.1]} 25... Qxg5 {[%clk 0:02:27]} 0-1

[Event "Live Chess"]
[Site "Chess.com"]
[Date "2023.05.21"]
[Round "-"]
[White "Singapourfeuj"]
[Black "Rusty_Bridges"]
[Result "1-0"]
[WhiteElo "2184"]
[BlackElo "1431"]
[TimeControl "300"]
[EndTime "21:48:56 PDT"]
[Termination "Singapourfeuj won by resignation"]

1. d4 {[%clk 0:04:58.4]} 1... d5 {[%clk 0:04:55.1]} 2. c4 {[%clk 0:04:56.7]}
2... e6 {[%clk 0:04:53.4]} 3. Nf3 {[%clk 0:04:54.7]} 3... Nd7 {[%clk 0:04:50.1]}
4. Nc3 {[%clk 0:04:52.5]} 4... Bb4 {[%clk 0:04:47.8]} 5. cxd5 {[%clk 0:04:51.1]}
5... exd5 {[%clk 0:04:43]} 6. Qb3 {[%clk 0:04:49.9]} 6... Bxc3+ {[%clk
0:04:38.5]} 7. bxc3 {[%clk 0:04:48.7]} 7... c6 {[%clk 0:04:36.9]} 8. Bg5 {[%clk
0:04:45.3]} 8... Ne7 {[%clk 0:04:33.1]} 9. e3 {[%clk 0:04:44.1]} 9... h6 {[%clk
0:04:31.5]} 10. Bh4 {[%clk 0:04:43]} 10... Qc7 {[%clk 0:04:16.6]} 11. Bd3 {[%clk
0:04:40.9]} 11... Ng6 {[%clk 0:04:03.7]} 12. Bg3 {[%clk 0:04:35.6]} 12... Qd8
{[%clk 0:04:01.7]} 13. h4 {[%clk 0:04:34]} 13... h5 {[%clk 0:03:53.4]} 14. c4
{[%clk 0:04:30.6]} 14... dxc4 {[%clk 0:03:39.2]} 15. Qxc4 {[%clk 0:04:28.9]}
15... Qe7 {[%clk 0:03:21.6]} 16. O-O {[%clk 0:04:20.5]} 16... Nb6 {[%clk
0:03:17.9]} 17. Qc2 {[%clk 0:04:17.4]} 17... Qf6 {[%clk 0:03:07.6]} 18. Ne5
{[%clk 0:04:12.7]} 18... Nxe5 {[%clk 0:03:00.4]} 19. dxe5 {[%clk 0:04:11.7]}
19... Qe7 {[%clk 0:02:55.8]} 20. e4 {[%clk 0:04:04]} 20... Be6 {[%clk
0:02:50.4]} 21. a4 {[%clk 0:03:56]} 21... Nd7 {[%clk 0:01:48]} 22. f4 {[%clk
0:03:53.4]} 22... Nc5 {[%clk 0:01:32.7]} 23. Be2 {[%clk 0:03:50.9]} 23... Qc7
{[%clk 0:01:16.7]} 24. f5 {[%clk 0:03:48.4]} 24... Bd7 {[%clk 0:01:12.5]} 25.
Qxc5 {[%clk 0:03:46.9]} 1-0

[Event "Live Chess"]
[Site "Chess.com"]
[Date "2023.05.21"]
[Round "-"]
[White "Conradical12"]
[Black "tpm07"]
[Result "0-1"]
[WhiteElo "1637"]
[BlackElo "1941"]
[TimeControl "300"]
[EndTime "21:49:16 PDT"]
[Termination "tpm07 won by resignation"]

1. e4 {[%clk 0:04:57.7]} 1... e5 {[%clk 0:04:56.5]} 2. f4 {[%clk 0:04:56.8]}
2... d5 {[%clk 0:04:54.3]} 3. fxe5 {[%clk 0:04:49.7]} 3... Qh4+ {[%clk
0:04:51.1]} 4. Ke2 {[%clk 0:04:34]} 4... Qxe4+ {[%clk 0:04:48.9]} 5. Kf2 {[%clk
0:04:31.9]} 5... Bc5+ {[%clk 0:04:47.4]} 6. Kg3 {[%clk 0:04:29.1]} 6... Qxe5+
{[%clk 0:04:42.8]} 7. Kf3 {[%clk 0:04:27.4]} 7... Qh5+ {[%clk 0:04:33.6]} 8. Kf4
{[%clk 0:04:25.2]} 8... g5+ {[%clk 0:04:10.8]} 9. Ke5 {[%clk 0:04:23]} 9... Qxd1
{[%clk 0:03:57.8]} 10. Be2 {[%clk 0:04:20.7]} 10... Qxc1 {[%clk 0:03:49.3]} 11.
Nf3 {[%clk 0:04:20.6]} 11... Qxb2+ {[%clk 0:03:47.8]} 0-1